bitfinex-derivatives/quotes_ETHF0:USTF0_20251107
["timestamp","ask_amount","ask_price","bid_price","bid_amount"]
[1762551080000,0.71191,3465.2,3465.1,0.70732]
[1762551080594,0.71191,3465.2,3465.1,0.2396]
[1762551080895,0.15292662,3466.0,3465.2,0.2396]
[1762551081196,0.15292662,3466.0,3465.3,0.70728]
[1762551081197,0.46769,3465.4,3465.3,0.70728]
[1762551081795,0.71185,3465.7,3465.6,0.46765]
[1762551081996,0.71185,3465.7,3465.6,0.2396]
[1762551082793,0.15292662,3466.0,3465.5,0.46767]
[1762551082794,0.71185,3465.6,3465.5,0.46767]
[1762551084798,0.71189,3465.5,3465.4,0.46768]
[1762551085701,0.86049,3465.5,3465.4,0.46768]
[1762551085901,0.71188,3465.4,3465.3,0.46769]
[1762551086599,0.1486,3465.5,3464.5,0.1412]
[1762551086903,0.85715,3465.0,3464.9,0.46773]
[1762551087101,0.46777,3464.9,3464.8,0.46776]
[1762551087298,0.46781,3464.6,3464.5,0.46779]
[1762551087504,0.71411,3464.6,3464.5,0.46779]
[1762551090101,0.61092,3464.5,3464.4,0.46781]
[1762551090408,0.85722,3464.5,3464.4,0.46782]
[1762551090611,0.46783,3464.3,3464.2,0.46785662]
[1762551090905,0.71412,3464.4,3464.3,0.46782]
[1762551091105,0.2463,3464.4,3464.3,0.46782]
[1762551091606,0.71412,3464.4,3464.3,0.46782]
[1762551093012,0.71412,3464.4,3464.3,0.69942]
[1762551094709,0.2463,3464.4,3464.3,0.69942]
[1762551094912,0.71412,3464.4,3464.3,0.69942]
[1762551095705,0.46782,3464.4,3464.3,0.69942]
[1762551096310,0.1431,3465.0,3464.4,0.2316]
[1762551096506,0.2463,3464.5,3464.4,0.2316]
[1762551097504,0.2463,3464.8,3464.7,0.46777]
[1762551097902,0.46782,3464.6,3464.5,0.46779]
[1762551098103,0.71412,3464.6,3464.5,0.46779]
[1762551100913,0.1431,3465.0,3464.7,0.2432]
[1762551101110,0.46776,3464.8,3464.7,0.2432]
[1762551101404,0.46778,3464.7,3464.6,0.46779]
[1762551101606,0.46781,3464.5,3464.4,0.711]
[1762551102025,0.71599,3464.7,3464.6,0.46777]
[1762551103213,0.71599,3464.7,3464.6,0.71097]
[1762551104206,0.46779,3464.7,3464.6,0.71097]
[1762551104408,1.03686372,3465.8,3465.7,0.2432]
[1762551104713,0.00432662,3466.0,3465.9,0.71081]
[1762551105503,0.1386,3467.0,3466.2,0.2432]
[1762551105706,0.46745,3467.1,3466.9,0.71068]
[1762551106614,0.47048202,3467.1,3466.9,0.71414321]
[1762551106817,0.00303202,3467.1,3466.9,0.71414321]
[1762551107613,0.3868,3467.0,3466.9,0.00346321]
[1762551111718,0.85427,3467.0,3466.9,0.00346321]
[1762551111905,0.46758,3466.2,3466.0,0.46759]
[1762551112109,0.3868,3466.0,3465.9,0.46761]
[1762551112309,0.2482,3466.0,3465.9,0.71081]
[1762551113021,0.46757,3466.2,3466.1,0.46759]
[1762551113312,0.71577,3466.2,3466.1,0.46759]
[1762551113514,0.2482,3466.4,3466.3,0.46755]
[1762551113720,0.4675,3466.8,3466.5,0.46753]
[1762551113915,0.2482,3466.6,3466.5,0.46753]
[1762551114616,0.1386,3467.0,3466.5,0.3883]
[1762551114821,0.1386,3467.0,3466.7,0.71071]
[1762551115514,0.46752,3466.6,3466.0,0.1258]
[1762551116121,0.2482,3466.8,3466.7,0.4675]
[1762551116321,0.71569,3466.8,3466.7,0.4675]
[1762551116815,0.46752,3466.6,3466.0,0.1258]
[1762551117022,0.46752,3466.6,3466.5,0.71632]
[1762551117220,0.2436,3466.7,3466.6,0.46752]
[1762551118625,0.71111,3466.7,3466.6,0.46752]
[1762551119221,0.2436,3466.7,3466.6,0.46752]
[1762551120127,0.2436,3466.7,3466.6,0.71632]
[1762551120426,0.71108,3466.9,3466.8,0.46749]
[1762551120918,0.47049202,3467.1,3467.0,0.71627]
[1762551121921,0.71409202,3467.1,3467.0,0.46747]
[1762551122126,0.46751,3466.7,3466.0,0.1258]
[1762551122326,0.7111,3466.8,3466.7,0.4675]
[1762551122518,0.2436,3466.8,3466.7,0.7163]
[1762551123624,0.46748,3466.9,3466.8,0.71629]
[1762551123928,0.71108,3466.9,3466.8,0.71629]
[1762551124426,0.2436,3466.9,3466.8,0.71629]
[1762551124727,0.00303202,3467.1,3467.0,0.86477]
[1762551124926,0.00303202,3467.1,3467.0,0.86137]
[1762551126916,0.47048202,3467.1,3467.0,0.86137]
[1762551127322,0.4675,3466.8,3466.7,0.7163]
[1762551127524,0.7111,3466.8,3466.7,0.7163]
[1762551128826,0.46754,3466.5,3466.0,0.1258]
[1762551129030,0.2436,3466.4,3466.3,0.46755]
[1762551130126,0.2436,3466.4,3466.3,0.71635]
[1762551130325,0.71115,3466.4,3466.3,0.2488]
[1762551130630,0.1421,3466.5,3466.0,0.46759]
[1762551130825,0.8533,3466.0,3465.9,0.00285206]
[1762551131025,0.8533,3466.0,3465.9,0.47046206]
[1762551131426,0.8533,3466.0,3465.9,0.00285206]
[1762551131724,0.2436,3466.0,3465.9,0.71926206]
[1762551132328,0.71118,3466.2,3466.1,0.46759]
[1762551132526,0.2436,3466.4,3466.3,0.46756]
[1762551132825,0.71115,3466.4,3466.3,0.46756]
[1762551133028,0.2436,3466.4,3466.3,0.71636]
[1762551133632,0.1421,3467.0,3466.5,0.1485]
[1762551133826,0.1421,3467.0,3466.7,0.4675]
[1762551134024,0.2436,3466.9,3466.8,0.71629]
[1762551134536,0.00303202,3467.1,3467.0,0.86477]
[1762551136539,0.47048202,3467.1,3467.0,0.86477]
[1762551137136,0.00303202,3467.1,3467.0,0.86477]
[1762551137537,0.47048202,3467.1,3467.0,0.86477]
[1762551137735,0.00303202,3467.1,3467.0,0.86477]
[1762551139142,0.47048202,3467.1,3467.0,0.86477]
[1762551139337,0.00303202,3467.1,3467.0,0.86477]
[1762551141245,1.036261,3468.1,3468.0,0.2488]
[1762551141451,0.71092,3468.1,3468.0,0.2488]
[1762551141647,0.71092,3468.1,3468.0,0.71613]
[1762551142242,0.71374099,3468.1,3468.0,0.71613]
[1762551143151,0.00282099,3468.1,3468.0,0.85733]
[1762551144542,0.09014216,3468.9,3468.0,0.1412]
[1762551144851,0.1421,3468.5,3468.0,0.46733]
[1762551145052,0.2436,3468.3,3468.2,0.4673]
[1762551145239,0.46731,3468.2,3468.1,0.2488]
[1762551145448,0.2436,3468.1,3468.0,0.46732]
[1762551145647,0.24651093,3468.1,3468.0,0.71612]
[1762551145849,0.00291093,3468.1,3468.0,0.81282]
[1762551150562,0.00291093,3468.1,3468.0,0.81283]
[1762551151455,0.46736,3467.9,3467.8,0.46734]
[1762551151650,0.00291093,3468.1,3467.7,0.00432662]
[1762551151651,0.69626,3467.8,3467.7,0.23062662]
[1762551151854,0.69626,3467.8,3467.7,0.00432662]
[1762551155163,0.1378,3468.0,3466.8,0.46749]
[1762551155164,0.46748,3466.9,3466.8,0.46749]
[1762551155358,0.69638,3466.9,3466.8,0.46749]
[1762551155559,0.6964,3466.8,3466.7,0.69381]
[1762551155958,0.6964,3466.8,3466.7,0.2263]
[1762551156160,0.6964,3466.8,3466.7,0.69381]
[1762551159255,0.46746,3467.1,3466.9,0.46747]
[1762551159465,0.46751,3466.8,3466.6,0.46752]
[1762551159767,0.46751,3466.8,3466.7,0.69381]
[1762551160659,0.46751,3466.8,3466.7,0.2263]
[1762551160857,0.83423,3466.5,3466.4,0.00432662]
[1762551162362,0.3667,3466.5,3466.4,0.47187662]
[1762551162562,0.83423,3466.5,3466.4,0.23062662]
[1762551162763,0.83423,3466.5,3466.4,0.00432662]
[1762551166068,0.8337,3466.0,3465.3,1.41705]
[1762551166464,0.8337,3466.0,3465.4,0.46768]
[1762551166870,0.8337,3466.0,3465.3,0.94937]
[1762551167071,0.8337,3466.0,3465.6,0.00432662]
[1762551168865,0.4676,3466.0,3465.6,0.00432662]
[1762551169070,0.4676,3466.0,3465.9,0.24285206]
[1762551169377,0.8337,3466.0,3465.9,0.00285206]
[1762551171172,0.69408,3465.4,3465.3,0.94937]
[1762551171478,0.1397,3465.5,3464.3,0.24]
[1762551171670,0.46782,3464.5,3464.4,0.24]
[1762551172170,0.00286096,3464.5,3464.4,0.71137833]
[1762551172673,0.00286096,3464.5,3464.4,0.24355833]
[1762551173176,0.00286096,3464.5,3464.4,0.71137833]
[1762551174378,0.46772,3465.2,3465.1,0.24]
[1762551174675,0.46769,3465.4,3465.3,0.24]
[1762551175273,0.47127824,3465.4,3465.3,0.24]
[1762551175472,0.00358824,3465.4,3465.3,0.7077]
[1762551175971,0.47126824,3465.4,3465.3,0.7077]
[1762551176270,0.00358824,3465.4,3465.3,0.7077]
[1762551176476,0.47126824,3465.4,3465.3,0.24]
[1762551177266,0.47126824,3465.4,3465.3,0.7077]
[1762551177567,0.47126824,3465.4,3465.3,0.24]
[1762551177772,0.46772,3465.1,3465.0,0.85224]
[1762551178879,0.46771,3465.2,3465.1,0.36771]
[1762551179080,0.46771,3465.2,3465.1,0.61191]
[1762551180183,0.47126824,3465.4,3465.3,0.4677]
[1762551180379,0.47126824,3465.4,3465.3,0.7119]
[1762551180678,0.00358824,3465.4,3465.3,0.7119]
[1762551182876,0.47126824,3465.4,3465.3,0.7119]
[1762551183082,0.47126824,3465.4,3465.3,0.2442]
[1762551183280,0.47126824,3465.4,3465.3,0.7119]
[1762551183986,0.46772,3465.2,3465.0,0.1403]
[1762551184181,0.46772,3465.1,3465.0,0.85222]
[1762551184391,0.00358824,3465.4,3465.2,0.46771]
[1762551184884,0.46772,3465.1,3465.0,0.3845]
[1762551185187,0.46772,3465.1,3465.0,0.85224]
[1762551185988,0.46772,3465.1,3465.0,0.3845]
[1762551187483,0.46772,3465.1,3465.0,0.85224]
[1762551187888,0.46771,3465.3,3465.2,0.4677]
[1762551188083,0.47126824,3465.4,3465.3,0.7119]
[1762551188284,0.00358824,3465.4,3465.3,0.7119]
[1762551189788,1.503851,3466.1,3466.0,0.3895]
[1762551189995,0.46759,3466.1,3466.0,0.3895]
[1762551190186,1.036261,3466.2,3465.0,0.1403]
[1762551190187,0.0614,3465.6,3465.0,0.1403]
[1762551190392,0.46772,3465.1,3465.0,0.3845]
[1762551190895,0.47125474,3465.1,3465.0,0.3845]
[1762551191095,0.53265474,3465.1,3465.0,0.1403]
[1762551191291,0.47125474,3465.1,3465.0,0.3845]
[1762551192596,0.47125474,3465.1,3465.0,0.1403]
[1762551192899,0.53265474,3465.1,3465.0,0.1403]
[1762551193400,0.46777,3464.8,3464.7,0.2442]
[1762551193601,0.46776,3464.8,3464.7,0.71198]
[1762551193796,0.46776,3464.8,3464.7,0.2442]
[1762551194396,0.00353474,3465.1,3464.8,0.2442]
[1762551194397,0.46776,3464.9,3464.8,0.2442]
[1762551196294,0.46776,3464.9,3464.8,0.71196]
[1762551196799,0.46776,3464.9,3464.8,0.2442]
[1762551197608,0.46776,3464.9,3464.8,0.71196]
[1762551198712,0.46774,3465.0,3464.9,0.46774]
[1762551198910,0.46774,3465.0,3464.9,0.71194]
[1762551199413,0.00353474,3465.1,3465.0,0.85724]
[1762551200511,0.47125474,3465.1,3465.0,0.85724]
[1762551201212,0.47125474,3465.1,3465.0,0.3895]
[1762551201413,0.53265474,3465.1,3465.0,0.1453]
[1762551201612,0.46779,3464.6,3464.5,0.3845]
[1762551202207,0.5292,3464.5,3464.4,0.00355833]
[1762551203008,0.5292,3464.5,3464.1,0.00432662]
[1762551203009,0.52924,3464.2,3464.1,0.00432662]
[1762551204008,0.52924,3464.2,3464.1,0.00674669]
[1762551204616,0.46784,3464.2,3464.1,0.25094669]
[1762551204915,0.52924,3464.2,3464.1,0.00674669]
[1762551206313,0.00432662,3464.5,3464.2,0.2469]
[1762551206506,0.47213662,3464.5,3464.3,0.46782]
[1762551206709,0.47212662,3464.5,3464.4,0.2469]
[1762551207815,0.00432662,3464.5,3464.4,0.71472]
[1762551208513,0.47212662,3464.5,3464.4,0.2469]
[1762551209613,0.47212662,3464.5,3464.4,0.71472]
[1762551210904,0.47212662,3464.5,3464.4,0.2469]
[1762551211214,0.47212662,3464.5,3464.4,0.71472]
[1762551211803,0.00432662,3464.5,3464.4,0.71472]
[1762551212418,0.47125474,3465.1,3465.0,0.86104]
[1762551212611,0.46779,3464.7,3464.5,0.1464]
[1762551213012,0.53289,3464.6,3464.5,0.1464]
[1762551217409,0.46779,3464.6,3464.5,0.3933]
[1762551218411,0.46779,3464.6,3464.5,0.8611]
[1762551220315,0.46779,3464.6,3464.5,0.3933]
[1762551220511,0.53289,3464.6,3464.5,0.1464]
[1762551222615,0.46779,3464.6,3464.5,0.86109]
[1762551223017,0.46779,3464.6,3464.5,0.3933]
[1762551223406,0.53369,3464.6,3464.5,0.1464]
[1762551224020,0.00432662,3464.9,3464.1,0.47459669]
[1762551224021,0.46784,3464.2,3464.1,0.47459669]
[1762551224225,0.46784,3464.2,3464.1,0.72319669]
[1762551225110,1.03413197,3464.7,3464.3,0.71641]
[1762551225111,0.46782,3464.4,3464.3,0.71641]
[1762551225514,0.46782,3464.4,3464.3,0.2486]
[1762551227724,0.46784,3464.2,3464.1,0.25534669]
[1762551228220,0.53374,3464.2,3464.1,0.00674669]
[1762551230120,0.53374,3464.2,3464.1,0.47460669]
[1762551230324,0.46784,3464.2,3464.1,0.72320669]
[1762551230524,1.03413197,3464.5,3464.2,0.2486]
[1762551230726,1.56782197,3464.6,3464.5,0.135]
[1762551232015,1.5719105,3464.6,3464.5,0.135]
[1762551232216,0.53369,3464.6,3464.5,0.135]
[1762551233118,0.53369,3464.6,3464.1,0.00674669]
[1762551233119,0.53374,3464.2,3464.1,0.00674669]
[1762551234924,2.17680837,3464.2,3464.1,0.00674669]
[1762551235326,2.17681363,3464.2,3464.1,0.00674669]
[1762551236121,0.62399779,3464.2,3464.1,0.00674669]
[1762551236319,0.53374,3464.2,3464.1,0.00674669]
[1762551236621,0.62399891,3464.2,3464.1,0.00674669]
[1762551236823,2.17681061,3464.2,3464.1,0.00674669]
[1762551237830,0.62399891,3464.2,3464.1,0.00674669]
[1762551239631,0.53374,3464.2,3464.1,0.00674669]
[1762551240124,1.57117921,3464.2,3464.1,0.00674669]
[1762551240325,0.53374,3464.2,3464.1,0.00674669]
[1762551240519,0.62400014,3464.2,3464.1,0.00674669]
[1762551240836,0.62400036,3464.2,3464.1,0.00674669]
[1762551241127,0.53374,3464.2,3464.1,0.00674669]
[1762551241325,0.62400192,3464.2,3464.1,0.00674669]
[1762551242230,0.52642,3463.6,3463.5,0.1453]
[1762551243220,0.52642,3463.6,3463.5,0.14846428]
[1762551243528,0.52642,3463.6,3463.5,0.00316428]
[1762551244831,0.52637,3463.3,3463.2,0.00432662]
[1762551245026,0.6166432,3463.3,3463.2,0.00432662]
[1762551245233,1.5628636,3463.3,3463.2,0.00432662]
[1762551245436,0.61666069,3463.3,3463.2,0.00432662]
[1762551245642,0.61666069,3463.3,3463.2,0.00691814]
[1762551246433,0.52637,3463.3,3463.2,0.00691814]
[1762551251137,1.56220303,3463.3,3463.2,0.00691814]
[1762551252436,0.51646,3462.6,3462.5,0.135]
[1762551252627,1.03441647,3463.2,3463.0,0.3868]
[1762551252935,0.46798,3463.3,3463.2,0.2485]
[1762551253330,0.47153496,3463.3,3463.2,0.25149089]
[1762551253542,1.1127527,3463.3,3463.2,0.25149089]
[1762551255541,1.1611527,3463.3,3463.2,0.25149089]
[1762551256130,1.1611527,3463.3,3463.2,0.00299089]
[1762551257239,0.6447727,3463.3,3463.2,0.71947089]
[1762551257738,1.1127427,3463.3,3463.2,0.71947089]
[1762551257940,0.6447727,3463.3,3463.2,0.71947089]
[1762551258639,0.00355496,3463.3,3463.2,0.71947089]
[1762551259042,0.51992496,3463.3,3463.2,0.00299089]
[1762551259236,1.1611427,3463.3,3463.2,0.00299089]
[1762551259840,2.19555917,3463.3,3463.2,0.00299089]
[1762551261248,1.1611427,3463.3,3463.2,0.00299089]
[1762551263449,1.25143107,3463.3,3463.2,0.00299089]
[1762551264252,2.8072071,3463.3,3463.2,0.00299089]
[1762551265245,1.1127427,3463.3,3463.2,0.00299089]
[1762551265450,2.14890688,3463.3,3463.2,0.00299089]
[1762551265645,2.19730688,3463.3,3463.2,0.00299089]
[1762551266044,1.25142829,3463.3,3463.2,0.00299089]
[1762551266248,11.39920432,3463.3,3463.2,8.9e-07]
[1762551266448,0.51721,3463.0,3462.9,0.00432662]
[1762551266747,1.15842774,3463.0,3462.9,0.00432662]
[1762551267350,1.24872241,3463.0,3462.9,0.00668822]
[1762551267751,2.80449844,3463.0,3462.9,0.00668822]
[1762551267947,0.46813,3462.1,3462.0,0.3815]
[1762551269144,0.46813,3462.1,3462.0,0.38480548]
[1762551269343,1.10934774,3462.1,3462.0,0.38480548]
[1762551269745,0.46811,3462.2,3462.0,0.60974548]
[1762551269952,0.46811,3462.2,3462.1,0.2432]
[1762551271253,1.10932774,3462.2,3462.1,0.2432]
[1762551271749,1.03666214,3462.8,3462.4,0.2432]
[1762551271958,0.00355496,3463.3,3463.2,0.71118]
[1762551272252,1.03666214,3463.5,3463.4,0.2432]
[1762551272452,0.47224662,3463.6,3463.5,0.3886]
[1762551272652,1.50931484,3463.6,3463.5,0.3886]
[1762551272855,0.52144662,3463.6,3463.5,0.1454]
[1762551273151,0.46799,3463.1,3463.0,0.1454]
[1762551273348,0.46799,3463.1,3463.0,0.3886]
[1762551273652,1.03749728,3463.3,3463.0,0.85661]
[1762551273855,1.03749728,3463.4,3463.0,0.85661]
[1762551274154,0.46799,3463.1,3463.0,0.3886]
[1762551277058,1.03749728,3463.3,3463.0,0.3886]
[1762551277260,1.03749728,3463.3,3463.1,0.2432]
[1762551277563,1.03749728,3463.3,3463.2,0.2432]
[1762551277863,1.50546728,3463.3,3463.2,0.2432]
[1762551281872,1.03749728,3463.4,3463.3,0.71117]
[1762551282059,1.50543728,3463.5,3463.4,0.2477]
[1762551282263,0.46794,3463.5,3463.4,0.2477]
[1762551283064,0.00655689,3463.6,3463.5,0.86384]
[1762551283862,0.65113174,3463.6,3463.5,0.86384]
[1762551284262,0.46788,3463.9,3463.8,0.7156]
[1762551284860,1.50536728,3464.0,3463.9,0.46788]
[1762551285068,1.03749728,3464.1,3464.0,0.86377]
[1762551285364,0.47112674,3464.1,3464.0,0.3959]
[1762551286364,0.46791,3463.8,3463.7,0.2477]
[1762551286764,0.46788,3464.0,3463.8,0.4679]
[1762551286965,0.46787,3464.0,3463.6,0.00432662]
[1762551287156,0.4679,3463.9,3463.8,0.2477]
[1762551287360,0.4679,3463.9,3463.8,0.7156]
[1762551290065,0.00326674,3464.1,3464.0,0.3959]
[1762551290269,0.00326674,3464.1,3464.0,0.86377]
[1762551296589,2.662e-05,3464.3,3464.2,0.70644]
[1762551296887,0.46774,3465.0,3464.9,0.70635]
[1762551297687,0.00341149,3465.0,3464.9,0.70973466]
[1762551301903,0.00341149,3465.0,3464.9,8.70973466]
[1762551302195,1.03749728,3466.9,3466.7,0.46749]
[1762551302399,0.63852079,3466.8,3466.7,0.2386]
[1762551302591,0.46748,3466.9,3466.8,0.2386]
[1762551302898,0.4675,3466.8,3466.6,0.46752]
[1762551303199,0.46966311,3466.8,3466.6,0.46752]
[1762551303390,0.46752,3466.6,3466.5,0.3873]
[1762551303589,0.46967311,3466.8,3466.5,0.3873]
[1762551303792,0.69231,3466.7,3466.6,0.46752]
[1762551304191,0.69231,3466.7,3466.5,0.61622]
[1762551304495,0.69231,3466.7,3466.6,0.46752]
[1762551304695,0.69231,3466.7,3466.5,0.1487]
[1762551304696,0.00216311,3466.8,3466.7,0.70611]
[1762551304901,1e-08,3467.0,3466.9,0.70608]
[1762551305196,0.1458,3468.5,3468.0,0.3327]
[1762551305397,0.63599028,3468.9,3468.1,0.46731]
[1762551305699,0.46735,3467.9,3467.5,0.1482]
[1762551305887,0.46735,3467.9,3467.5,0.0028814]
[1762551305888,0.2248,3467.6,3467.5,0.0028814]
[1762551312704,0.69219,3467.6,3467.5,0.0028814]
[1762551314505,0.46739,3467.6,3467.5,0.2414814]
[1762551315600,0.69219,3467.6,3467.5,0.2414814]
[1762551316310,0.69219,3467.6,3467.5,0.0028814]
[1762551321205,0.69222,3467.3,3467.2,0.00432662]
[1762551322116,0.69222,3467.3,3467.2,0.00643439]
[1762551324318,0.78240625,3467.3,3467.2,0.00643439]
[1762551326213,1.81990353,3467.3,3467.2,0.00643439]
[1762551327720,0.46756,3466.3,3466.2,0.70297]
[1762551328017,0.1401,3467.0,3466.3,0.46756]
[1762551328721,0.46753,3466.5,3466.4,0.70294]
[1762551329420,0.46753,3466.5,3466.4,0.2354]
[1762551330107,0.70203,3466.5,3466.4,0.70295]
[1762551330412,0.46753,3466.5,3466.4,0.70295]
[1762551330616,0.46753,3466.5,3466.4,0.2354]
[1762551331007,0.70205,3466.4,3466.3,0.00768671]
[1762551334312,0.79224575,3466.4,3466.3,0.00768671]
[1762551337125,0.70205,3466.4,3466.3,0.71064671]
[1762551337618,0.70205,3466.4,3466.3,0.24308671]
[1762551338119,0.70205,3466.4,3466.3,0.71064671]
[1762551338824,0.70205,3466.4,3466.3,0.24308671]
[1762551339824,0.70205,3466.4,3466.3,0.00768671]
[1762551340123,0.70205,3466.4,3466.3,0.24308671]
[1762551341020,0.70205,3466.4,3466.3,0.71064671]
[1762551341422,0.70205,3466.4,3466.3,0.00768671]
[1762551342219,0.71377,3465.5,3465.4,1.02222127]
[1762551342424,0.1361,3465.5,3465.0,0.1487]
[1762551342624,0.46779,3464.6,3464.5,0.3817]
[1762551342819,0.1361,3465.0,3464.5,0.3817]
[1762551343321,0.46778,3464.7,3464.5,0.85226535]
[1762551343623,0.46779,3464.6,3464.5,0.38446535]
[1762551343818,0.46779,3464.6,3464.5,0.85226535]
[1762551344019,0.71389,3464.6,3464.5,0.23576535]
[1762551344213,0.71389,3464.6,3464.5,0.38226535]
[1762551346327,0.71389,3464.6,3464.5,0.85006535]
[1762551346627,0.71389,3464.6,3464.5,0.38226535]
[1762551347225,0.71389,3464.6,3464.5,0.00276535]
[1762551354330,0.71389,3464.6,3464.4,0.00432662]
[1762551354331,0.46799,3463.1,3463.0,0.1465]
[1762551354518,0.46806,3462.6,3462.5,0.3795]
[1762551354721,0.46806,3462.6,3462.2,0.46811]
[1762551355020,0.1361,3463.0,3462.2,0.46811]
[1762551355221,0.46807,3462.6,3462.3,0.00432662]
[1762551355425,0.46808,3462.5,3462.4,0.233]
[1762551355728,0.2461,3462.4,3462.3,0.00432662]
[1762551356118,0.71419,3462.4,3462.3,0.00432662]
[1762551356526,0.71419,3462.4,3462.3,0.23732662]
[1762551356726,0.71419,3462.4,3462.3,0.70542662]
[1762551356928,0.46809,3462.4,3462.3,0.70542662]
[1762551357326,0.46809,3462.4,3462.3,0.23732662]
[1762551357527,0.46809,3462.4,3462.3,0.70542662]
[1762551359323,0.00329832,3462.5,3462.4,0.71069]
[1762551359928,0.46809,3462.4,3462.3,0.00432662]
[1762551360126,0.71529,3462.4,3462.3,0.47242662]
[1762551360426,0.71529,3462.4,3462.3,0.24692662]
[1762551360728,0.2472,3462.4,3462.3,0.71502662]
[1762551360924,0.71856832,3462.5,3462.4,0.2426]
[1762551361532,0.47136832,3462.5,3462.4,0.2426]
[1762551361732,0.47136832,3462.5,3462.4,0.71069]
[1762551361924,0.47136832,3462.5,3462.4,0.2426]
[1762551362125,0.71856832,3462.5,3462.4,0.2426]
[1762551362933,0.46809,3462.4,3462.3,0.00432662]
[1762551363226,0.46809,3462.4,3462.3,0.71502662]
[1762551363729,0.46809,3462.4,3462.3,0.24692662]
[1762551363933,0.71529,3462.4,3462.3,0.00432662]
[1762551366138,0.00329832,3462.5,3462.4,0.71069]
[1762551366628,0.47136832,3462.5,3462.4,0.71069]
[1762551366833,0.71529,3462.4,3462.3,0.00432662]
[1762551369038,0.00329832,3462.5,3462.4,0.2426]
[1762551369236,0.46809,3462.4,3462.3,0.00432662]
[1762551369438,0.71529,3462.4,3462.3,0.00432662]
[1762551369832,0.71529,3462.4,3462.3,0.47242662]
[1762551370039,0.71529,3462.4,3462.3,0.00432662]
[1762551370940,0.47136832,3462.5,3462.4,0.71069]
[1762551371845,0.47136832,3462.5,3462.4,0.2426]
[1762551372045,0.71856832,3462.5,3462.4,0.2426]
[1762551372247,0.71856832,3462.5,3462.4,0.71069]
[1762551372441,0.00329832,3462.5,3462.4,0.71069]
[1762551373442,0.00432662,3462.9,3462.8,0.71063]
[1762551374550,0.00659435,3462.9,3462.8,0.71063]
[1762551375437,0.25379435,3462.9,3462.8,0.46803]
[1762551375645,0.46808,3462.4,3462.3,0.71502662]
[1762551376048,1.3573788,3462.8,3462.7,0.46804]
[1762551376347,1.3573788,3462.8,3462.3,0.00432662]
[1762551376348,0.47461435,3462.9,3462.8,0.71063]
[1762551376549,1.11754721,3462.9,3462.8,0.71063]
[1762551377249,1.11754721,3462.9,3462.8,0.2426]
[1762551377448,1.36474721,3462.9,3462.8,0.2426]
[1762551378447,0.46806,3462.6,3462.5,0.3908]
[1762551379046,0.46806,3462.6,3462.5,0.85887]
[1762551379551,0.64413604,3462.7,3462.6,0.71066]
[1762551380650,1.11218604,3462.7,3462.6,0.71066]
[1762551381346,0.64413604,3462.7,3462.6,0.71066]
[1762551381750,1.11218604,3462.7,3462.6,0.71066]
[1762551383750,0.64413604,3462.7,3462.6,0.71066]
[1762551383956,0.00659435,3462.9,3462.8,0.71063]
[1762551384155,1.12053828,3462.9,3462.8,0.71063]
[1762551384754,0.65251828,3462.9,3462.8,0.71063]
[1762551385654,0.65251828,3462.9,3462.8,8.71063]
[1762551385857,1.03300782,3463.6,3463.5,0.1393]
[1762551386051,1.50089782,3463.9,3463.8,0.6072]
[1762551386247,1.82085513,3463.9,3463.8,0.4679]
[1762551386647,0.78784731,3463.9,3463.8,0.4679]
[1762551386851,0.0928405,3463.9,3463.8,0.6075]
[1762551387055,0.00258319,3463.9,3463.8,0.6075]
[1762551387260,0.47046319,3463.9,3463.8,0.6075]
[1762551387559,0.00258319,3463.9,3463.8,0.6075]
[1762551388260,0.47046319,3463.9,3463.8,0.6075]
[1762551389056,0.00432662,3464.2,3464.1,0.60746]
[1762551389255,0.1429,3465.0,3464.8,0.46776]
[1762551389558,0.2297,3464.9,3464.8,0.46776]
[1762551389865,0.69745,3464.9,3464.8,0.46776]
[1762551390055,0.00226441,3464.9,3464.8,0.60601299]
[1762551390652,0.00432662,3465.2,3465.1,0.60302]
[1762551391259,0.46761,3465.9,3465.4,0.1353]
[1762551391462,0.46763,3465.8,3465.7,0.46763]
[1762551391663,0.1428,3466.0,3465.8,0.46763]
[1762551391864,0.14619242,3466.0,3465.8,0.46763]
[1762551392156,0.14619242,3466.0,3465.6,0.46765]
[1762551392564,0.2297,3465.8,3465.7,0.46764]
[1762551392761,0.46762,3465.9,3465.8,0.46762]
[1762551393261,0.37589242,3466.0,3465.9,0.46761]
[1762551395056,0.14619242,3466.0,3464.8,0.00295299]
[1762551395255,0.1428,3465.0,3464.8,0.00295299]
[1762551395658,0.1428,3465.0,3464.9,0.46775]
[1762551395858,0.1428,3465.0,3464.8,0.47071299]
[1762551396067,0.2297,3464.9,3464.8,0.47071299]
[1762551396264,0.1428,3465.0,3464.9,0.46775]
[1762551396467,0.1428,3465.0,3464.9,0.60305]
[1762551396658,0.1428,3465.0,3464.8,0.00295299]
[1762551396659,0.46768,3465.4,3465.3,0.46769]
[1762551396862,0.1428,3465.0,3464.9,0.46775]
[1762551397066,0.3725,3465.0,3464.9,0.46775]
[1762551398770,0.2297,3464.9,3464.8,0.00295299]
[1762551399665,0.2297,3464.9,3464.8,0.47071299]
[1762551399970,0.46771,3465.3,3465.2,0.46771]
[1762551400161,0.69741,3465.3,3465.2,0.46771]
[1762551400766,0.46772,3465.2,3465.0,0.46772]
[1762551400971,0.46772,3465.1,3465.0,0.46772]
[1762551401163,0.1409,3465.0,3464.8,0.00295299]
[1762551401358,0.14619242,3466.0,3464.8,0.00295299]
[1762551401571,0.14619242,3466.0,3465.9,0.70431]
[1762551402069,0.38379242,3466.0,3465.9,0.46761]
[1762551402268,0.2376,3465.9,3465.0,0.0715]
[1762551402472,0.2376,3465.9,3465.8,0.46763]
[1762551402966,0.2376,3465.9,3465.0,0.0715]
[1762551402967,0.14619242,3466.0,3465.9,0.70431]
[1762551407465,0.00339242,3466.0,3465.9,0.70431]
[1762551408558,0.14429242,3466.0,3465.9,0.46761]
[1762551408771,0.14429242,3466.0,3465.9,0.70431]